fUST/lending_fUST_20250308
["ID","MTS","AMOUNT","RATE_DAILY","PERIOD"]
[355629195,1741411634129,-161.246878,0.00041507,2]
[355629196,1741411634152,-160.8860716,0.0004247,2]
[355629197,1741411634175,-150.0,0.00044889,2]
[355629198,1741411634198,-502.0,0.00044999,5]
[355629199,1741411634220,-1573.0969341,0.00045,60]
[355629200,1741411634250,-5352.5830659,0.00045,60]
[355629201,1741411634276,-7257.47649407,0.00045699,2]
[355629202,1741411636113,-233.99742136,0.00045699,2]
[355629203,1741411639081,-2077.91464865,0.00045699,2]
[355629204,1741411642091,-1083.70349017,0.00045699,2]
[355629205,1741411642114,-262.29894405,0.00046,60]
[355629206,1741411642234,-1604.52746238,0.00046,60]
[355629210,1741411715155,890.94679601,0.0002799,2]
[355629211,1741411715645,900.0,0.00025469,3]
[355629215,1741411754091,-824.00957593,0.00038,2]
[355629228,1741411832445,-3133.17359357,0.00046,60]
[355629229,1741411832454,-4270.0,0.00046,2]
[355629230,1741411832464,-3541.3200387,0.00046049,4]
[355629231,1741411832473,-160.0,0.00046225,2]
[355629232,1741411832482,-1000.0,0.00046487,120]
[355629233,1741411832492,-1000.0,0.00046488,120]
[355629234,1741411832501,-540.30922626,0.000466,120]
[355629235,1741411832510,-1000.0,0.000466,120]
[355629236,1741411832520,-1000.0,0.0004662,120]
[355629237,1741411832529,-646.85,0.000468,120]
[355629238,1741411832538,-48.81856826,0.0004689,28]
[355629245,1741411838202,-259.056,0.000459,120]
[355629249,1741411840386,-230.87940541,0.000459,120]
[355629259,1741411843759,-391.88659939,0.000459,120]
[355629260,1741411843769,-1691.95457546,0.0004689,28]
[355629261,1741411843778,-1572.2617001,0.000469,2]
[355629262,1741411843787,-500.0,0.00046973,2]
[355629263,1741411843797,-500.0,0.00046973,10]
[355629264,1741411843806,-500.0,0.00046973,10]
[355629265,1741411843815,-395.11710075,0.00046973,10]
[355629266,1741411843825,-1000.0,0.00046988,120]
[355629267,1741411843834,-500.0,0.00046989,2]
[355629268,1741411843844,-500.0,0.00046989,2]
[355629269,1741411843853,-500.0,0.00046989,2]
[355629270,1741411843867,-500.0,0.00046989,2]
[355629271,1741411843877,-56.63320294,0.00046989,2]
[355629275,1741411846386,-443.36679706,0.00046989,2]
[355629276,1741411846397,-500.0,0.00046989,2]
[355629277,1741411846411,-500.0,0.00046989,2]
[355629278,1741411846422,-630.192,0.00046989,2]
[355629279,1741411846432,-57.64120302,0.00046989,2]
[355629283,1741412253984,490.8,0.0003,2]
[355629291,1741412693699,300.0,0.0003,2]
[355629303,1741412807123,-164.086306,0.0003589,2]
[355629304,1741412807146,-42.81785027,0.00041837,2]
[355629305,1741412831076,-121.26845573,0.00041837,2]
[355629306,1741412831098,-755.05477846,0.000425,90]
[355629307,1741412834112,-554.40232078,0.000425,90]
[355629309,1741412839081,-737.23290076,0.000425,90]
[355629310,1741412839104,-546.8295736,0.00045242,2]
[355629311,1741412839125,-216.81375,0.00045418,120]
[355629312,1741412839147,-181.85325,0.00045418,120]
[355629313,1741412839171,-214.7302436,0.000456,120]
[355629314,1741412839192,-2655.990029,0.00046049,4]
[355629315,1741412839215,-981.59520707,0.00046308,120]
[355629316,1741412839239,-4460.87342929,0.00046409,2]
[355629321,1741412848072,-1964.96788883,0.00046409,2]
[355629322,1741412849078,-1631.88133627,0.00046409,2]
[355629323,1741412849107,-836.17021817,0.00046409,2]
[355629324,1741412849130,-162.082512,0.0004655,4]
[355629325,1741412849152,-193.0,0.00046789,2]
[355629326,1741412849284,-1622.69795245,0.00046789,28]
[355629369,1741413032582,-1991.9925217,0.00046049,4]
[355629370,1741413032593,-8136.54019494,0.0004678,2]
[355629371,1741413032605,-230.15118168,0.0004678,2]
[355629372,1741413032616,-1637.47037622,0.00046799,2]
[355629373,1741413032628,-255.0,0.000468,120]
[355629374,1741413032639,-160.0,0.00046832,2]
[355629375,1741413032650,-151.0,0.00046872,2]
[355629376,1741413032662,-500.0,0.00046872,2]
[355629377,1741413032673,-518.5,0.00046872,2]
[355629378,1741413032684,-537.6845,0.00046872,2]
[355629379,1741413032694,-557.5788265,0.00046872,2]
[355629380,1741413032705,-578.20924308,0.00046872,2]
[355629381,1741413032715,-599.60298507,0.00046872,2]
[355629382,1741413032870,-621.78829552,0.00046872,2]
[355629383,1741413032882,-644.79446246,0.00046872,2]
[355629384,1741413032892,-668.65185757,0.00046872,2]
[355629385,1741413032902,-693.3919763,0.00046872,2]
[355629386,1741413032911,-719.04747942,0.00046872,2]
[355629387,1741413032920,-745.65223616,0.00046872,2]
[355629388,1741413032930,-773.2413689,0.00046872,2]
[355629389,1741413032939,-801.85129955,0.00046872,2]
[355629390,1741413032949,-831.51979763,0.00046872,2]
[355629391,1741413032959,-862.28603014,0.00046872,2]
[355629392,1741413032968,-894.19061326,0.00046872,2]
[355629393,1741413032978,-921.56112608,0.00046872,2]
[355629475,1741413044315,-5.71453987,0.00046872,2]
[355629476,1741413044324,-961.58486559,0.00046872,2]
[355629477,1741413044335,-1500.0,0.00046872,2]
[355629478,1741413044346,-508.6181882,0.00046873,10]
[355629479,1741413044355,-503.34918753,0.00046873,10]
[355629480,1741413044364,-500.0,0.00046873,10]
[355629481,1741413044374,-826.25,0.0004688,30]
[355629482,1741413044385,-510.93,0.0004688,10]
[355629483,1741413044395,-974.31,0.0004688,10]
[355629484,1741413044405,-811.92,0.0004688,10]
[355629485,1741413044414,-1143.42915174,0.0004688,40]
[355629486,1741413044423,-361.74724571,0.0004688,10]
[355629622,1741413046513,-218.32976542,0.0004688,10]
[355629666,1741413245370,1046.84432844,0.0003,120]
[355629681,1741414027163,-165.676578,0.0003589,2]
[355629682,1741414027184,-2795.63,0.0003983,120]
[355629683,1741414027204,-165.676578,0.00042209,2]
[355629684,1741414027226,-169.0,0.000433,120]
[355629685,1741414027246,-500.0,0.0004342,120]
[355629686,1741414027268,-150.0,0.0004478,2]
[355629687,1741414027290,-33.78778701,0.00044794,120]
[355629688,1741414035117,-466.21221299,0.00044794,120]
[355629689,1741414035139,-375.72531069,0.0004589,120]
[355629690,1741414035160,-458.20270839,0.00046049,4]
[355629691,1741414044137,-1035.79168291,0.00046049,4]
[355629692,1741414044161,-205.01506964,0.00046389,2]
[355629693,1741414044185,-169.0,0.000466,120]
[355629694,1741414044208,-1902.92625717,0.0004668,28]
[355629695,1741414044233,-600.0,0.00046762,2]
[355629696,1741414044256,-396.59,0.0004677,30]
[355629697,1741414044277,-330.49,0.0004677,30]
[355629698,1741414044299,-275.41,0.0004677,30]
[355629699,1741414044320,-229.5,0.0004677,30]
[355629700,1741414044341,-1245.04,0.0004677,10]
[355629701,1741414044362,-191.25,0.0004677,30]
[355629702,1741414044384,-221.32149459,0.0004677,10]
[355629703,1741414051073,-816.20850541,0.0004677,10]
[355629704,1741414051095,-159.38,0.0004677,30]
[355629705,1741414051116,-864.61,0.0004677,10]
[355629706,1741414051138,-269.51045764,0.0004677,30]
[355629711,1741414132144,10000.0,0.0003,2]
[355629712,1741414145081,-261.5276539,0.00040876,2]
[355629713,1741414148103,-237.59433895,0.0004467,2]
[355629714,1741414156573,507.23,0.0003,2]
[355629715,1741414160065,-152.0,0.00045,90]
[355629753,1741414244343,-500.0,0.00046047,2]
[355629754,1741414244356,-500.0,0.00046047,2]
[355629755,1741414244368,-500.0,0.00046047,2]
[355629756,1741414244380,-500.0,0.00046047,2]
[355629757,1741414244391,-500.0,0.00046047,2]
[355629758,1741414244404,-500.0,0.00046047,2]
[355629759,1741414244415,-293.32120294,0.00046047,2]
[355629760,1741414244426,-500.0,0.00046047,2]
[355629761,1741414244437,-500.0,0.00046047,2]
[355629762,1741414244449,-500.0,0.00046047,2]
[355629763,1741414244460,-500.0,0.00046047,2]
[355629765,1741414244472,-500.0,0.00046047,2]
[355629768,1741414244483,-500.0,0.00046047,2]
[355629770,1741414244495,-500.0,0.00046047,2]
[355629772,1741414244507,-500.0,0.00046047,2]
[355629774,1741414244519,-500.0,0.00046047,2]
[355629777,1741414244532,-500.0,0.00046047,2]
[355629779,1741414244543,-500.0,0.00046047,2]
[355629781,1741414244556,-500.0,0.00046047,2]
[355629783,1741414244569,-500.0,0.00046047,2]
[355629786,1741414244583,-500.0,0.00046047,2]
[355629788,1741414244596,-242.89300382,0.00046047,2]
[355629790,1741414244607,-500.0,0.00046047,2]
[355629792,1741414244618,-500.0,0.00046047,2]
[355629794,1741414244628,-1143.42915174,0.00046048,40]
[355629796,1741414244639,-4998.7383074,0.00046048,14]
[355629799,1741414244653,-8607.85317864,0.00046048,14]
[355632722,1741415225119,-161.186629,0.0003589,2]
[355632723,1741415225157,-295.2178564,0.00040641,2]
[355632724,1741415225180,-1802.44316337,0.00040645,2]
[355632725,1741415228188,-1903.2910534,0.00040645,2]
[355632726,1741415231082,-1531.70703956,0.00040645,2]
[355632727,1741415240113,-4035.7397534,0.00040645,2]
[355632728,1741415250100,-4219.03546927,0.00040645,2]
[355632729,1741415250124,-161.186629,0.00041211,2]
[355632730,1741415250148,-942.0,0.00042,120]
[355632731,1741415250169,-233.8321,0.000432,120]
[355632732,1741415250191,-158.39622596,0.00043948,2]
[355632733,1741415250213,-942.0,0.00044,120]
[355632734,1741415250235,-785.27616564,0.000459,120]
[355632735,1741415250257,-213.0,0.00046,2]
[355632736,1741415250279,-942.0,0.00046,120]
[355632737,1741415250301,-5367.56046453,0.00046,2]
[355632738,1741415267715,670.03440896,0.00018,2]
[355632739,1741415353083,-155.59748398,0.000439,2]
[355632770,1741415437917,-250.98307209,0.000459,2]
[355632775,1741415438182,-1058.99322891,0.000459,2]
[355632776,1741415438191,-492.59422158,0.000459,28]
[355632777,1741415438213,-1172.4662534,0.000459,28]
[355632778,1741415438222,-1309.97630096,0.00045907,2]
[355632779,1741415438232,-1309.97630096,0.00045915,2]
[355632780,1741415438242,-1309.97630096,0.00045922,2]
[355632781,1741415438347,-1309.97630096,0.00045929,2]
[355632782,1741415438358,-500.0,0.00045973,10]
[355632783,1741415438368,-500.0,0.00045973,10]
[355632784,1741415438378,-525.62959846,0.00045973,10]
[355632785,1741415438389,-500.0,0.00045973,2]
[355632786,1741415438399,-443.56502801,0.00045973,10]
[355632787,1741415438408,-527.41,0.00045989,30]
[355632788,1741415438418,-383.45,0.00045989,10]
[355632789,1741415438427,-550.0,0.00045998,5]
[355632790,1741415438437,-500.0,0.00045998,2]
[355632791,1741415438447,-500.0,0.00045998,2]
[355632792,1741415438456,-500.0,0.00045998,2]
[355632793,1741415438466,-500.0,0.00045998,2]
[355632794,1741415438475,-500.0,0.00045998,2]
[355632795,1741415438484,-324.28930038,0.00045998,2]
[355632796,1741415438494,-500.0,0.00045998,2]
[355632797,1741415438503,-500.0,0.00045998,2]
[355632798,1741415438512,-571.71457587,0.00045999,40]
[355632799,1741415438522,-428.0,0.00045999,2]
[355632800,1741415438531,-679752.79153,0.00045999,14]
[355632801,1741415438540,-4632.43953547,0.00046,2]
[355632802,1741415438550,-824.00957593,0.00046,2]
[355632803,1741415438559,-1007.44373008,0.00046,120]
[355632804,1741415438568,-467.87147249,0.00046024,4]
[355632805,1741415438578,-20301.5074063,0.00046027,4]
[355632806,1741415438588,-7020.37076587,0.00046027,2]
[355632807,1741415438598,-9000.0,0.00046028,2]
[355632808,1741415438608,-9000.0,0.00046029,2]
[355632809,1741415438618,-2789.33387007,0.0004603,40]
[355632810,1741415438628,-9000.0,0.0004603,2]
[355632811,1741415438637,-467.87147249,0.0004603,4]
[355632812,1741415438647,-151.0,0.0004603,120]
[355632813,1741415438657,-9000.0,0.00046031,2]
[355632814,1741415438667,-9000.0,0.00046032,2]
[355632815,1741415438676,-9000.0,0.00046033,2]
[355632816,1741415438686,-9000.0,0.00046034,2]
[355632817,1741415438696,-9000.0,0.00046035,2]
[355632818,1741415438705,-9000.0,0.00046036,2]
[355632819,1741415438715,-9000.0,0.00046037,2]
[355632820,1741415438724,-9000.0,0.00046038,2]
[355632821,1741415438734,-9000.0,0.00046039,2]
[355632822,1741415438743,-10000.0,0.0004604,2]
[355632823,1741415438752,-1120.4957935,0.00046049,4]
[355632824,1741415438762,-742.0971578,0.00046065,2]
[355632825,1741415438771,-500.0,0.00046073,10]
[355632826,1741415438780,-500.0,0.00046073,2]
[355632827,1741415438790,-508.6181882,0.00046073,10]
[355632828,1741415438799,-500.0,0.00046073,10]
[355632829,1741415438808,-500.0,0.00046073,10]
[355632830,1741415438818,-742.0971578,0.00046392,2]
[355632831,1741415438827,-1000.0,0.00046522,120]
[355632832,1741415438837,-161.186629,0.00046532,2]
[355632833,1741415438848,-600.0,0.0004657,2]
[355632834,1741415438858,-15555.67399697,0.0004659,2]
[355632835,1741415438867,-416.66666667,0.0004659,2]
[355632836,1741415438877,-20301.5074063,0.0004659,4]
[355632837,1741415438888,-467.87147249,0.0004659,4]
[355632838,1741415438897,-11070.7086,0.000466,90]
[355632839,1741415438907,-5000.0,0.000466,60]
[355632840,1741415438917,-5000.0,0.000466,60]
[355632841,1741415438926,-5000.0,0.000466,60]
[355632842,1741415438936,-5000.0,0.000466,60]
[355632843,1741415438946,-999.0,0.000466,60]
[355632844,1741415438955,-160.0,0.00046608,2]
[355632845,1741415438965,-158.093975,0.00046623,120]
[355632846,1741415438976,-467.87147249,0.00046647,4]
[355632847,1741415438986,-1000.0,0.00046655,120]
[355632848,1741415438996,-20301.5074063,0.00046657,4]
[355632849,1741415439006,-935.74294498,0.00046659,4]
[355632850,1741415439015,-999.0,0.00046669,120]
[355632851,1741415439025,-81206.0296252,0.00046669,4]
[355632852,1741415439035,-1871.48588996,0.00046669,4]
[355632853,1741415439045,-500.0,0.00046673,10]
[355632854,1741415439054,-500.0,0.00046673,10]
[355632855,1741415439065,-501.3007353,0.00046673,10]
[355632856,1741415439075,-500.0,0.00046673,10]
[355632857,1741415439085,-500.0,0.00046673,10]
[355632858,1741415439096,-604.79249635,0.00046673,10]
[355632859,1741415439107,-500.0,0.00046673,10]
[355632860,1741415439118,-500.0,0.00046673,10]
[355632861,1741415439131,-500.0,0.00046673,10]
[355632862,1741415439150,-501.31911512,0.00046673,10]
[355632863,1741415439160,-441.40864746,0.00046673,7]
[355632864,1741415439171,-485.97595896,0.00046673,10]
[355632865,1741415439181,-501.68145191,0.00046673,10]
[355632866,1741415439191,-501.21363941,0.00046673,10]
[355632867,1741415439201,-500.0,0.00046673,10]
[355632868,1741415439212,-500.0,0.00046673,10]
[355632869,1741415439222,-500.0,0.00046673,10]
[355632870,1741415439232,-500.0,0.00046673,2]
[355632871,1741415439242,-500.0,0.00046673,2]
[355632872,1741415439253,-500.0,0.00046673,10]
[355632873,1741415439263,-500.0,0.00046673,10]
[355632874,1741415439272,-504.04743059,0.00046673,2]
[355632875,1741415439283,-502.41335846,0.00046673,10]
[355632876,1741415439292,-500.0,0.00046673,10]
[355632877,1741415439301,-512.70538615,0.00046673,10]
[355632878,1741415439310,-500.0,0.00046673,10]
[355632879,1741415439320,-502.93317483,0.00046673,10]
[355632880,1741415439330,-490.33575033,0.00046673,10]
[355632881,1741415439339,-234.06325921,0.00046678,30]
[355632882,1741415439349,-151.0,0.00046679,120]
[355632883,1741415439359,-222000.0,0.00046679,2]
[355632884,1741415439368,-467.87147249,0.00046757,4]
[355632885,1741415439377,-151.0,0.00046762,2]
[355632886,1741415439386,-20301.5074063,0.00046767,4]
[355632887,1741415439396,-201.07026636,0.00046769,14]
[355632888,1741415439405,-158.328284,0.0004677,120]
[355632889,1741415439415,-500.0,0.00046773,2]
[355632890,1741415439429,-212.844612,0.00046777,120]
[355632891,1741415439442,-160.737339,0.00046777,120]
[355632892,1741415439454,-151.0,0.00046777,120]
[355632893,1741415439467,-151.0,0.00046777,30]
[355632894,1741415439479,-151.0,0.00046778,120]
[355632895,1741415439489,-151.0,0.00046778,120]
[355632896,1741415439501,-151.0,0.00046778,30]
[355632897,1741415439513,-151.0,0.00046779,90]
[355632898,1741415439526,-176.055301,0.00046779,120]
[355632899,1741415439538,-151.0,0.00046779,120]
[355632902,1741415439550,-151.0,0.00046779,120]
[355632903,1741415439562,-151.0,0.00046779,30]
[355632904,1741415439575,-151.0,0.00046779,30]
[355632905,1741415439587,-151.0,0.0004678,90]
[355632906,1741415439598,-151.818775,0.0004678,120]
[355632907,1741415439612,-151.0,0.0004678,30]
[355632908,1741415439624,-207.72,0.0004678,30]
[355632909,1741415439638,-467.87147249,0.0004678,4]
[355632910,1741415439649,-151.0,0.00046787,90]
[355632911,1741415439661,-151.0,0.00046787,30]
[355632912,1741415439673,-151.0,0.00046788,90]
[355632913,1741415439685,-151.0,0.00046788,30]
[355632914,1741415439697,-156.964846,0.00046789,120]
[355632915,1741415439708,-151.0,0.00046789,90]
[355632916,1741415439721,-151.0,0.00046789,30]
[355632917,1741415439733,-151.0,0.0004679,90]
[355632918,1741415439748,-151.0,0.0004679,90]
[355632919,1741415439759,-151.0,0.0004679,90]
[355632920,1741415439771,-1907.567789,0.0004679,120]
[355632921,1741415439782,-295.172444,0.0004679,30]
[355632922,1741415439792,-255.78901625,0.0004689,28]
[355632923,1741415439804,-151.0,0.00046962,90]
[355632924,1741415439816,-20301.5074063,0.00046963,4]
[355632925,1741415439828,-500.68651185,0.00046973,3]
[355632926,1741415439841,-508.01585595,0.00046973,10]
[355632927,1741415439852,-500.0,0.00046973,10]
[355632928,1741415439865,-500.0,0.00046973,10]
[355632929,1741415439877,-150.0,0.00046973,10]
[355632930,1741415439889,-150.0,0.00046973,3]
[355632931,1741415439902,-500.0,0.00046973,10]
[355632932,1741415439915,-150.0,0.00046973,10]
[355632933,1741415439928,-1907.567789,0.00046973,120]
[355632934,1741415439943,-467.87147249,0.0004698,4]
[355632935,1741415439956,-1907.567789,0.00046988,120]
[355632936,1741415439967,-289.031368,0.0004699,90]
[355632937,1741415439977,-1907.567797,0.0004699,120]
[355632938,1741415439988,-40603.0148126,0.0004699,4]
[355632939,1741415439999,-1403.61441747,0.0004699,4]
[355632940,1741415440010,-2000.0,0.00046998,120]
[355632942,1741415440022,-100000.0,0.00047,30]
[355632943,1741415440035,-617.0,0.00047,120]
[355632944,1741415440047,-10137.22748958,0.00047,120]
[355632945,1741415440058,-10000.0,0.00047,120]
[355632946,1741415440069,-151.0,0.00047,120]
[355632947,1741415440079,-151.0,0.00047,120]
[355632948,1741415440090,-622.2,0.00047118,2]
[355632949,1741415440101,-156.587,0.0004731,2]
[355632951,1741415440114,-20301.5074063,0.0004748,4]
[355632952,1741415440129,-467.87147249,0.0004748,4]
[355632953,1741415440139,-151.0,0.0004749,120]
[355632954,1741415440150,-151.0,0.0004749,120]
[355632955,1741415440162,-999.0,0.0004749,120]
[355632956,1741415440173,-935.74294498,0.0004749,4]
[355632957,1741415440184,-99737.1797835,0.000475,30]
[355632958,1741415440195,-151.0,0.000475,120]
[355632959,1741415440206,-151.0,0.000475,120]
[355632960,1741415440217,-156.52,0.000475,120]
[355632961,1741415440228,-250.0,0.00047521,3]
[355632962,1741415440239,-1000.0,0.00047521,10]
[355632963,1741415440250,-150.54445658,0.00047521,10]
[355632964,1741415440261,-645.2214,0.00047666,2]
[355632965,1741415440273,-1116.23,0.000478,120]
[355632966,1741415440283,-190.73590998,0.000478,120]
[355632967,1741415440295,-162.380719,0.00047858,2]
[355632968,1741415440305,-942.0,0.00048,120]
[355632969,1741415440316,-350.0,0.00048068,3]
[355632970,1741415440327,-512.52061289,0.00048068,10]
[355632971,1741415440339,-207.72,0.00048149,30]
[355632972,1741415440350,-500.0,0.00048196,100]
[355632973,1741415440361,-19999.0,0.00048197,120]
[355632974,1741415440372,-669.0945918,0.00048214,2]
[355632975,1741415440383,-500.0,0.00048296,90]
[355632976,1741415440395,-999.0,0.00048312,120]
[355632977,1741415440406,-500.0,0.00048396,95]
[355632978,1741415440417,-500.095823,0.000484,107]
[355632979,1741415440428,-168.3888056,0.00048406,2]
[355632980,1741415440439,-500.0,0.00048496,92]
[355632981,1741415440450,-500.0,0.000485,108]
[355632982,1741415440461,-334.02292636,0.00048509,120]
[355632983,1741415440472,-334.02292636,0.00048563,120]
[355632984,1741415440483,-334.02292636,0.00048566,120]
[355632985,1741415440494,-500.0,0.00048596,91]
[355632986,1741415440505,-334.02292636,0.00048596,120]
[355632987,1741415440516,-450.0,0.00048616,3]
[355632988,1741415440527,-500.0,0.00048696,91]
[355632989,1741415440538,-151.0,0.000487,21]
[355632990,1741415440549,-1200.0,0.0004872,120]
[355632991,1741415440561,-585.0,0.00048758,5]
[355632992,1741415440572,-693.8510917,0.00048762,2]
[355632993,1741415440583,-500.0,0.00048796,98]
[355632994,1741415440595,-4791.43365559,0.00048864,120]
[355632995,1741415440606,-500.0,0.00048896,97]
[355632996,1741415440617,-155.59748398,0.000489,2]
[355632997,1741415440628,-3000.0,0.000489,2]
[355632998,1741415440639,-306.9034754,0.00048954,2]
[355632999,1741415440651,-18139.67248245,0.00048967,120]
[355633000,1741415440662,-151.0,0.0004899,120]
[355633001,1741415440794,-151.0,0.0004899,120]
[355633002,1741415440807,-467.87147249,0.0004899,4]
[355633003,1741415440818,-500.0,0.00048996,98]
[355633004,1741415440828,-2000.0,0.00048998,120]
[355633005,1741415440839,-1423.09,0.00049,30]
[355633006,1741415440848,-1259.94,0.00049,30]
[355633007,1741415440858,-807.67607864,0.00049,30]
[355633008,1741415440867,-807.67607864,0.00049,30]
[355633009,1741415440876,-154.58112906,0.00049,30]
[355633010,1741415440886,-154.58112906,0.00049,30]
[355633011,1741415440895,-154.58112906,0.00049,30]
[355633012,1741415440904,-154.58112906,0.00049,30]
[355633013,1741415440914,-382.61157556,0.00049,120]
[355633014,1741415440923,-742.72694509,0.00049,30]
[355633015,1741415440932,-742.72694509,0.00049,30]
[355633016,1741415440942,-7263.0,0.00049,2]
[355633017,1741415440951,-50000.0,0.00049,120]
[355633018,1741415440961,-339034.0,0.00049,120]
[355633019,1741415440972,-14736.0,0.00049,120]
[355633020,1741415440982,-151.0,0.00049,120]
[355633021,1741415440992,-151.0,0.00049,120]
[355633022,1741415441001,-151.0,0.00049,120]
[355633023,1741415441010,-151.0,0.00049,120]
[355633024,1741415441019,-500.0,0.00049096,100]
[355633025,1741415441028,-999.0,0.00049134,120]
[355633026,1741415441038,-550.0,0.00049164,3]
[355633027,1741415441047,-500.0,0.00049196,99]
[355633028,1741415441056,-150.59,0.00049208,2]
[355633029,1741415441066,-542.56,0.00049208,2]
[355633030,1741415441076,-1962.752,0.00049208,2]
[355633031,1741415441085,-2276.0,0.00049208,2]
[355633032,1741415441095,-398.0,0.00049208,2]
[355633033,1741415441105,-2000.0,0.00049286,120]
[355633034,1741415441118,-500.0,0.00049296,97]
[355633035,1741415441127,-500.0,0.00049305,7]
[355633036,1741415441137,-500.0,0.00049305,4]
[355633037,1741415441147,-719.52358209,0.0004931,2]
[355633038,1741415441158,-200.11684612,0.00049315,10]
[355633039,1741415441167,-150.0,0.00049315,10]
[355633040,1741415441176,-500.0,0.00049315,120]
[355633041,1741415441187,-500.0,0.00049315,120]
[355633042,1741415441197,-500.0,0.00049315,120]
[355633043,1741415441209,-500.0,0.00049315,120]
[355633044,1741415441218,-500.0,0.00049315,120]
[355633045,1741415441227,-500.0,0.00049315,120]
[355633046,1741415441236,-500.0,0.00049315,120]
[355633047,1741415441245,-500.0,0.00049315,120]
[355633048,1741415441255,-500.0,0.00049315,120]
[355633049,1741415441264,-500.0,0.00049315,120]
[355633050,1741415441273,-500.0,0.00049315,120]
[355633051,1741415441282,-500.0,0.00049315,120]
[355633052,1741415441292,-500.0,0.00049315,120]
[355633053,1741415441301,-500.0,0.00049315,120]
[355633054,1741415441310,-500.0,0.00049315,120]
[355633055,1741415441320,-500.0,0.00049315,120]
[355633056,1741415441329,-500.0,0.00049315,120]
[355633057,1741415441339,-500.0,0.00049315,120]
[355633058,1741415441348,-500.0,0.00049315,120]
[355633059,1741415441357,-500.0,0.00049315,120]
[355633060,1741415441367,-500.0,0.00049315,120]
[355633061,1741415441376,-500.0,0.00049315,120]
[355633062,1741415441385,-500.0,0.00049315,120]
[355633063,1741415441395,-500.0,0.00049315,120]
[355633064,1741415441405,-500.0,0.00049315,120]
[355633065,1741415441414,-500.0,0.00049315,120]
[355633066,1741415441424,-500.0,0.00049315,120]
[355633067,1741415441433,-500.0,0.00049315,120]
[355633068,1741415441442,-500.0,0.00049315,120]
[355633069,1741415441451,-500.0,0.00049315,120]
[355633070,1741415441461,-500.0,0.00049315,120]
[355633071,1741415441470,-500.0,0.00049315,120]
[355633072,1741415441479,-500.0,0.00049315,120]
[355633073,1741415441488,-500.0,0.00049315,120]
[355633074,1741415441497,-500.0,0.00049315,120]
[355633075,1741415441507,-500.0,0.00049315,120]
[355633076,1741415441516,-500.0,0.00049315,120]
[355633077,1741415441526,-500.0,0.00049315,120]
[355633078,1741415441536,-500.0,0.00049315,120]
[355633079,1741415441545,-500.0,0.00049315,120]
[355633080,1741415441554,-500.0,0.00049315,120]
[355633081,1741415441564,-500.0,0.00049315,120]
[355633082,1741415441574,-500.0,0.00049315,120]
[355633083,1741415441583,-500.0,0.00049315,120]
[355633084,1741415441593,-500.0,0.00049315,120]
[355633085,1741415441603,-500.0,0.00049315,120]
[355633086,1741415441613,-500.0,0.00049315,120]
[355633087,1741415441624,-500.0,0.00049315,120]
[355633088,1741415441644,-500.0,0.00049315,120]
[355633089,1741415441656,-500.0,0.00049315,120]
[355633090,1741415441668,-500.0,0.00049332,7]
[355633091,1741415441680,-500.0,0.00049332,4]
[355633092,1741415441689,-2501.6172422,0.0004935,2]
[355633093,1741415441699,-151.0,0.00049352,120]
[355633094,1741415441708,-151.0,0.00049352,120]
[355633095,1741415441718,-500.0,0.0004936,7]